bitfinex/quotes_BTCUSD_20241117
["timestamp","ask_amount","ask_price","bid_price","bid_amount"]
[1731803488273,0.220235,90812.0,90800.0,0.110131]
[1731803488274,0.110124,90807.0,90800.0,0.110131]
[1731803488504,0.110126,90805.0,90800.0,0.110131]
[1731803488964,0.220237,90811.0,90798.0,0.220269]
[1731803489194,0.110124,90807.0,90800.0,0.110131]
[1731803489432,0.110136,90797.0,90790.0,0.27592824]
[1731803489906,0.110133,90799.0,90792.0,0.1118544]
[1731803490140,0.110133,90799.0,90793.0,0.110139]
[1731803490368,0.110133,90799.0,90792.0,0.0017134]
[1731803490369,0.110131,90801.0,90794.0,0.110138]
[1731803490610,0.32931355,90806.0,90792.0,0.0017134]
[1731803490611,0.11013,90802.0,90795.0,0.110138]
[1731803490822,0.110131,90801.0,90795.0,0.110138]
[1731803491050,0.110131,90801.0,90792.0,0.0017134]
[1731803491051,0.110133,90799.0,90793.0,0.11014]
[1731803491510,0.10906255,90805.0,90795.0,0.220275]
[1731803491731,0.10906255,90805.0,90800.0,0.110131]
[1731803491987,0.21918855,90805.0,90800.0,0.110131]
[1731803492217,0.110127,90804.0,90798.0,0.110134]
[1731803492724,0.10906255,90805.0,90795.0,0.220275]
[1731803492951,0.10906255,90805.0,90797.0,0.110135]
[1731803492952,0.110129,90803.0,90797.0,0.110135]
[1731803493182,0.220254,90804.0,90795.0,0.110137]
[1731803493412,0.10906255,90805.0,90794.0,0.110138]
[1731803493413,0.110132,90800.0,90794.0,0.110138]
[1731803493633,0.220257,90803.0,90792.0,0.2219944]
[1731803493634,0.11013,90802.0,90796.0,0.110136]
[1731803494307,0.220257,90803.0,90795.0,0.110137]
[1731803494765,0.110132,90800.0,90795.0,0.110137]
[1731803495231,0.110131,90801.0,90795.0,0.110137]
[1731803495483,0.110131,90801.0,90796.0,0.110136]
[1731803496225,0.110131,90801.0,90793.0,0.220281]
[1731803496498,0.110131,90801.0,90795.0,0.110138]
[1731803497214,0.110128,90803.0,90796.0,0.110135]
[1731803497441,0.110128,90803.0,90797.0,0.110134]
[1731803497703,0.110119,90811.0,90806.0,0.110124]
[1731803497980,0.265317,90820.0,90792.0,0.0017134]
[1731803497981,0.0451,90820.0,90794.0,0.00720248]
[1731803498271,0.19770104,90828.0,90812.0,0.110117]
[1731803498272,0.220206,90824.0,90812.0,0.110117]
[1731803498553,0.16578524,90823.0,90812.0,0.110117]
[1731803498808,0.09842232,90827.0,90812.0,0.110117]
[1731803498809,0.110099,90827.0,90812.0,0.110117]
[1731803499036,0.110106,90822.0,90812.0,0.110117]
[1731803499280,0.04506412,90825.0,90812.0,0.110117]
[1731803499504,0.2210544,90828.0,90812.0,0.110117]
[1731803499981,0.0008564,90828.0,90812.0,0.110117]
[1731803501682,0.220204,90825.0,90812.0,0.110117]
[1731803501900,0.110106,90822.0,90812.0,0.110117]
[1731803502143,0.220216,90820.0,90812.0,0.110117]
[1731803502373,0.110115,90814.0,90809.0,0.11012]
[1731803502601,0.12782773,90813.0,90795.0,0.2699884]
[1731803502838,0.110129,90802.0,90801.0,0.16578524]
[1731803503068,0.110129,90802.0,90795.0,0.0017134]
[1731803503069,0.110132,90800.0,90795.0,0.0017134]
[1731803503294,0.110129,90803.0,90797.0,0.110135]
[1731803503526,0.10906255,90805.0,90795.0,0.0017134]
[1731803504235,0.10906255,90805.0,90797.0,0.110135]
[1731803504236,0.220254,90804.0,90797.0,0.110135]
[1731803504479,0.11013,90802.0,90797.0,0.110135]
[1731803504958,0.220254,90804.0,90795.0,0.0017134]
[1731803505190,0.10906255,90805.0,90795.0,0.0017134]
[1731803505191,0.220257,90803.0,90795.0,0.0017134]
[1731803505478,0.04361996,90807.0,90795.0,0.0017134]
[1731803505479,0.110137,90796.0,90795.0,0.0017134]
[1731803506452,0.21919955,90796.0,90795.0,0.0017134]
[1731803506895,0.26809955,90796.0,90795.0,0.0017134]
[1731803507812,0.04365814,90801.0,90795.0,0.0017134]
[1731803508294,0.110134,90799.0,90795.0,0.0017134]
[1731803508297,0.04400694,90808.0,90795.0,0.0017134]
[1731803508535,0.10906255,90807.0,90798.0,0.220269]
[1731803508757,0.2210895,90813.0,90798.0,0.220269]
[1731803508758,0.0008565,90813.0,90798.0,0.220269]
[1731803509015,0.0008565,90813.0,90812.0,0.110117]
[1731803510450,0.0008565,90813.0,90812.0,0.1123192]
[1731803511152,0.0008565,90813.0,90812.0,0.110117]
[1731803514514,0.0008565,90813.0,90812.0,0.08889214]
[1731803518330,0.0008565,90813.0,90809.0,0.22024]
[1731803518331,0.0046129,90833.0,90821.0,0.110105]
[1731803518549,0.110099,90827.0,90821.0,0.110105]
[1731803518770,0.110099,90828.0,90821.0,0.110106]
[1731803518987,0.110096,90829.0,90821.0,0.110106]
[1731803519251,0.220191,90830.0,90815.0,0.220226]
[1731803519516,0.110103,90824.0,90817.0,0.16578524]
[1731803519758,0.1101,90827.0,90820.0,0.110107]
[1731803519984,0.32925355,90830.0,90817.0,0.16578524]
[1731803519985,0.110099,90828.0,90819.0,0.110109]
[1731803520217,0.110099,90828.0,90821.0,0.110106]
[1731803520443,0.110099,90828.0,90823.0,0.110104]
[1731803520665,0.10906255,90830.0,90817.0,0.16578524]
[1731803520911,0.10906255,90830.0,90824.0,0.110102]
[1731803521149,0.1101,90827.0,90820.0,0.110107]
[1731803521398,0.1101,90827.0,90821.0,0.110106]
[1731803521642,0.110098,90828.0,90821.0,0.110105]
[1731803521872,0.10906255,90830.0,90817.0,0.16578524]
[1731803521873,0.220193,90829.0,90817.0,0.16578524]
[1731803522097,0.110105,90822.0,90817.0,0.27589624]
[1731803522337,0.10906255,90830.0,90817.0,0.16578524]
[1731803522338,0.220198,90827.0,90817.0,0.16578524]
[1731803522577,0.220198,90827.0,90816.0,0.110111]
[1731803522578,0.110104,90824.0,90818.0,0.110109]
[1731803522854,0.10906255,90824.0,90812.0,0.220233]
[1731803523095,0.220208,90823.0,90812.0,0.220233]
[1731803523317,0.110107,90821.0,90814.0,0.110114]
[1731803523609,0.110105,90823.0,90813.0,0.330348]
[1731803523881,0.110105,90823.0,90816.0,0.110112]
[1731803524116,0.110108,90820.0,90814.0,0.110115]
[1731803524344,0.10906255,90824.0,90814.0,0.110115]
[1731803524576,0.110106,90822.0,90815.0,0.110112]
[1731803524800,0.10906255,90824.0,90815.0,0.110112]
[1731803524801,0.110107,90821.0,90815.0,0.110112]
[1731803525029,0.220208,90823.0,90807.0,0.16578524]
[1731803525271,0.110106,90822.0,90816.0,0.110111]
[1731803525499,0.110106,90822.0,90807.0,0.16578524]
[1731803525500,0.10906255,90824.0,90813.0,0.22023]
[1731803525716,0.10906255,90824.0,90814.0,0.110115]
[1731803525983,0.10906255,90824.0,90809.0,0.220242]
[1731803525984,0.10991935,90824.0,90809.0,0.220242]
[1731803526231,0.110104,90823.0,90818.0,0.110109]
[1731803526449,0.110105,90822.0,90816.0,0.110112]
[1731803526671,0.10991935,90824.0,90807.0,0.16578524]
[1731803526672,0.110105,90823.0,90807.0,0.16578524]
[1731803526902,0.10991935,90824.0,90819.0,0.110107]
[1731803527414,0.10991935,90824.0,90816.0,0.220223]
[1731803527415,0.10991935,90824.0,90820.0,0.110107]
[1731803527641,0.0008568,90824.0,90815.0,0.0803]
[1731803527870,0.0008568,90824.0,90823.0,0.110104]
[1731803533345,0.22018,90835.0,90817.0,0.16578524]
[1731803533579,0.110091,90834.0,90828.0,0.110097]
[1731803534278,0.110091,90834.0,90826.0,0.220199]
[1731803534493,0.10906255,90835.0,90823.0,0.220207]
[1731803534737,0.10906255,90835.0,90818.0,0.22022]
[1731803534993,0.110091,90834.0,90828.0,0.110097]
[1731803535246,0.10906255,90835.0,90819.0,0.220218]
[1731803535486,0.10906255,90835.0,90833.0,0.110091]
[1731803535711,0.21915255,90835.0,90829.0,0.110096]
[1731803536173,0.110091,90834.0,90823.0,0.220208]
[1731803536401,0.10906255,90835.0,90824.0,0.220206]
[1731803536628,0.110091,90834.0,90828.0,0.110097]
[1731803537082,0.110091,90834.0,90829.0,0.110096]
[1731803537345,0.10906255,90835.0,90820.0,0.220215]
[1731803537569,0.220181,90834.0,90826.0,0.1101]
[1731803537786,0.110091,90834.0,90828.0,0.110097]
[1731803538294,0.110092,90833.0,90826.0,0.110099]
[1731803538525,0.110092,90833.0,90827.0,0.110099]
[1731803539317,0.2210375,90834.0,90820.0,0.001713]
[1731803539548,0.44097723,90821.0,90820.0,0.001713]
[1731803539804,0.44097723,90821.0,90818.0,0.16578524]
[1731803539805,0.005,90819.0,90818.0,0.16578524]
[1731803540036,0.11013,90801.0,90800.0,0.16578524]
[1731803540268,0.11013,90801.0,90800.0,0.162826]
[1731803540518,0.110134,90798.0,90797.0,0.0017136]
[1731803541000,0.21919655,90798.0,90797.0,0.0017136]
[1731803541217,0.110144,90790.0,90789.0,0.16578524]
[1731803541475,0.21920655,90790.0,90789.0,0.16578524]
[1731803541698,0.21920655,90790.0,90776.0,0.16407217]
[1731803541699,0.110148,90787.0,90777.0,0.11016]
[1731803541982,0.10906255,90790.0,90776.0,0.16407217]
[1731803542218,0.110145,90789.0,90778.0,0.110157]
[1731803542439,0.110149,90786.0,90776.0,0.27423217]
[1731803542926,0.110152,90783.0,90772.0,0.1118786]
[1731803543177,0.110145,90789.0,90775.0,0.110161]
[1731803543401,0.110151,90785.0,90775.0,0.110161]
[1731803543654,0.220295,90787.0,90775.0,0.110161]
[1731803543655,0.110151,90784.0,90775.0,0.110161]
[1731803543881,0.110151,90784.0,90772.0,0.0017136]
[1731803544100,0.10906255,90790.0,90776.0,0.11016]
[1731803544379,0.110154,90782.0,90773.0,0.110164]
[1731803544621,0.110154,90782.0,90772.0,0.0017136]
[1731803544846,0.10906255,90790.0,90772.0,0.0017136]
[1731803544847,0.220293,90788.0,90772.0,0.0017136]
[1731803545095,0.110154,90782.0,90772.0,0.1118786]
[1731803545343,0.110154,90782.0,90773.0,0.110164]
[1731803545584,0.220295,90787.0,90773.0,0.110164]
[1731803545833,0.220295,90787.0,90772.0,0.0017136]
[1731803546085,0.110151,90785.0,90774.0,0.110163]
[1731803547043,0.220295,90787.0,90773.0,0.220329]
[1731803547269,0.220298,90786.0,90772.0,0.0017136]
[1731803547487,0.110159,90778.0,90772.0,0.0017136]
[1731803547737,0.10906255,90786.0,90772.0,0.0017136]
[1731803547954,0.110156,90781.0,90772.0,0.0017136]
[1731803548179,0.10906255,90786.0,90772.0,0.0017136]
[1731803548422,0.110157,90780.0,90772.0,0.0017136]
[1731803548906,0.10906255,90786.0,90772.0,0.0017136]
[1731803549144,0.110164,90773.0,90772.0,0.0017136]
[1731803550377,0.15616255,90780.0,90772.0,0.0017136]
[1731803550590,0.15616255,90780.0,90773.0,0.110164]
[1731803550591,0.10906255,90779.0,90773.0,0.110164]
[1731803550838,0.11016,90777.0,90772.0,0.0017136]
[1731803551054,0.10906255,90779.0,90772.0,0.0017136]
[1731803551055,0.10906255,90776.0,90772.0,0.0017136]
[1731803551271,0.21922355,90776.0,90772.0,0.0017136]
[1731803551764,0.110162,90775.0,90772.0,0.0017136]
[1731803551990,0.110164,90774.0,90772.0,0.0017136]
[1731803552212,0.10906255,90776.0,90772.0,0.0017136]
[1731803552213,0.110164,90773.0,90772.0,0.0017136]
[1731803555041,0.110164,90774.0,90772.0,0.0017136]
[1731803555262,0.110164,90773.0,90772.0,0.0017136]
[1731803555711,0.43954855,90776.0,90772.0,0.0017136]
[1731803555931,0.10906255,90776.0,90772.0,0.0017136]
[1731803556905,0.110164,90774.0,90772.0,0.0017136]
[1731803557113,0.110164,90773.0,90772.0,0.0017136]
[1731803558780,0.21922655,90773.0,90772.0,0.0017136]
[1731803558989,0.34532655,90773.0,90772.0,0.0017136]
[1731803565268,0.36832655,90773.0,90772.0,0.0017136]
[1731803565480,0.37032655,90773.0,90772.0,0.0017136]
[1731803565728,0.47032655,90773.0,90772.0,0.0017136]
[1731803565957,0.47532655,90773.0,90772.0,0.0017136]
[1731803566167,0.48032655,90773.0,90772.0,0.0017136]
[1731803566399,0.245168,90770.0,90769.0,0.0017132]
[1731803566665,0.35223055,90770.0,90769.0,0.0017132]
[1731803568371,0.35423055,90770.0,90769.0,0.0017132]
[1731803568831,0.37133575,90770.0,90769.0,0.0017132]
[1731803569270,0.110179,90761.0,90758.0,0.16578524]
[1731803569490,0.21924155,90761.0,90758.0,0.16578524]
[1731803569710,0.21924155,90761.0,90754.0,0.001713]
[1731803569964,0.3398009,90761.0,90754.0,0.001713]
[1731803570171,0.45643746,90761.0,90754.0,0.001713]
[1731803570423,0.4217009,90761.0,90760.0,0.00014032]
[1731803570646,0.50323746,90761.0,90760.0,0.00014032]
[1731803571125,0.50323746,90761.0,90754.0,0.001713]
[1731803571126,0.44794155,90761.0,90754.0,0.001713]
[1731803571346,0.110186,90755.0,90754.0,0.00062455]
[1731803577192,0.15310891,90755.0,90754.0,0.00062455]
[1731803578314,0.04292291,90755.0,90754.0,0.00062455]
[1731803578733,0.15310891,90755.0,90754.0,0.00062455]
[1731803578949,0.04292291,90755.0,90743.0,0.07876469]
[1731803579164,0.04292291,90755.0,90664.0,0.01149238]
[1731803579165,0.110193,90750.0,90742.0,0.110201]
[1731803579383,0.02057123,90749.0,90742.0,0.110201]
[1731803579846,0.110193,90750.0,90742.0,0.110201]
[1731803579847,0.02057123,90748.0,90742.0,0.110201]
[1731803580070,0.02057123,90747.0,90742.0,0.110201]
[1731803580320,0.02057123,90746.0,90742.0,0.110201]
[1731803580564,0.02057123,90745.0,90740.0,0.1119168]
[1731803580768,0.220381,90752.0,90740.0,0.1119168]
[1731803580769,0.02057123,90744.0,90741.0,0.110202]
[1731803580983,0.02057123,90743.0,90741.0,0.110202]
[1731803581213,0.02057123,90742.0,90741.0,0.110202]
[1731803581440,0.02057123,90742.0,90740.0,0.0017128]
[1731803581928,0.02057123,90741.0,90740.0,0.0017128]
[1731803582119,0.05349027,90741.0,90740.0,0.0017128]
[1731803582385,0.16369327,90741.0,90740.0,0.0017128]
[1731803584304,0.13077423,90741.0,90740.0,0.0017128]
[1731803584978,0.13077767,90741.0,90740.0,0.0017128]
[1731803585201,0.13077767,90741.0,90723.0,0.110225]
[1731803585202,0.326029,90720.0,90717.0,0.004407]
[1731803585408,0.326029,90720.0,90691.0,0.16578524]
[1731803585409,0.110249,90703.0,90702.0,0.16578524]
[1731803585640,0.37014005,90703.0,90702.0,0.16578524]
[1731803585872,0.37014005,90703.0,90691.0,0.16578524]
[1731803585873,0.110263,90692.0,90691.0,0.16578524]
[1731803586106,0.16375749,90692.0,90691.0,0.16578524]
[1731803586340,0.16375749,90692.0,90681.0,0.0017148]
[1731803586341,0.02057467,90692.0,90689.0,0.110265]
[1731803586570,0.1,90703.0,90681.0,0.0017148]
[1731803586571,0.02057467,90691.0,90686.0,0.11027]
[1731803586802,0.02057467,90691.0,90684.0,0.220546]
[1731803586803,0.02057467,90690.0,90689.0,0.110266]
[1731803587254,0.13082667,90701.0,90681.0,0.2222678]
[1731803587481,0.02057467,90700.0,90681.0,0.2222678]
[1731803587707,0.110256,90698.0,90681.0,0.2222678]
[1731803587951,0.02057467,90697.0,90687.0,0.110268]
[1731803588198,0.02057467,90697.0,90688.0,0.0787]
[1731803588417,0.02057467,90696.0,90688.0,0.0787]
[1731803588647,0.02057467,90696.0,90690.0,0.110264]
[1731803588877,0.02057467,90695.0,90690.0,0.110265]
[1731803589108,0.02057467,90695.0,90688.0,0.0787]
[1731803589109,0.0205267,90701.0,90688.0,0.299234]
[1731803589363,0.0205267,90700.0,90688.0,0.0787]
[1731803589604,0.0205267,90699.0,90688.0,0.0787]
[1731803589833,0.0205267,90698.0,90688.0,0.0787]
[1731803590085,0.220492,90707.0,90688.0,0.0787]
[1731803590086,0.0205267,90700.0,90689.0,0.002205]
[1731803590308,0.38625824,90715.0,90689.0,0.002205]
[1731803590309,0.0205267,90711.0,90691.0,0.220529]
[1731803590532,0.16578524,90715.0,90691.0,0.220529]
[1731803590533,0.16578524,90705.0,90692.0,0.0022048]
[1731803590761,0.0205267,90710.0,90709.0,0.110242]
[1731803590984,0.16578524,90715.0,90707.0,0.220488]
[1731803591213,0.16578524,90727.0,90708.0,0.00220465]
[1731803591442,0.16578524,90715.0,90714.0,0.110236]
[1731803591722,0.16578524,90727.0,90710.0,0.22048]
[1731803591951,0.16578524,90727.0,90703.0,0.01]
[1731803591952,0.220443,90726.0,90703.0,0.01]
[1731803592179,0.110226,90722.0,90712.0,0.110238]
[1731803592413,0.16578524,90727.0,90716.0,0.220467]
[1731803592868,0.16578524,90727.0,90703.0,0.01]
[1731803593108,0.110223,90725.0,90716.0,0.110233]
[1731803593355,0.16578524,90727.0,90716.0,0.110233]
[1731803593838,0.16578524,90727.0,90704.0,0.220497]
[1731803594074,0.16578524,90727.0,90703.0,0.01]
[1731803594075,0.110222,90726.0,90703.0,0.01]
[1731803594296,0.110222,90726.0,90716.0,0.110233]
[1731803594545,0.110222,90726.0,90713.0,0.220473]
[1731803594546,0.110222,90726.0,90717.0,0.110232]
[1731803594790,0.16578524,90727.0,90714.0,0.220472]
[1731803595017,0.16578524,90732.0,90714.0,0.220472]
[1731803595259,0.11022,90728.0,90715.0,0.110235]
[1731803595510,0.10906255,90731.0,90703.0,0.01]
[1731803595755,0.0808,90737.0,90713.0,0.220475]
[1731803595756,0.16578524,90733.0,90713.0,0.220475]
[1731803595977,0.16578524,90733.0,90714.0,0.0787]
[1731803596201,0.16578524,90733.0,90732.0,0.110214]
[1731803596642,0.16578524,90744.0,90718.0,0.005]
[1731803596830,0.110202,90743.0,90720.0,0.110229]
[1731803597124,0.110203,90742.0,90734.0,0.110212]
[1731803597354,0.16578524,90744.0,90717.0,0.0459]
[1731803597575,0.16578524,90744.0,90666.0,0.10218119]
[1731803597576,0.12697123,90737.0,90714.0,0.16578524]
[1731803597801,0.110229,90720.0,90714.0,0.16578524]
[1731803598285,0.110221,90726.0,90705.0,0.0787]
[1731803598512,0.110223,90725.0,90705.0,0.0787]
[1731803598737,0.110213,90733.0,90716.0,0.0017148]
[1731803598967,0.49527179,90734.0,90717.0,0.220465]
[1731803598968,0.11022,90728.0,90717.0,0.220465]
[1731803599192,0.11022,90728.0,90719.0,0.110229]
[1731803599710,0.110211,90735.0,90727.0,0.11022]
[1731803599953,0.16578524,90734.0,90722.0,0.220453]
[1731803600200,0.11021,90736.0,90728.0,0.110218]
[1731803600453,0.0067148,90747.0,90716.0,0.2221818]
[1731803600454,0.1119108,90747.0,90739.0,0.110205]
[1731803600684,0.0017148,90747.0,90727.0,0.00220405]
[1731803600921,0.0017148,90747.0,90737.0,0.110207]
[1731803601134,0.0017148,90747.0,90742.0,0.110201]
[1731803601363,0.0017148,90747.0,90726.0,0.0787]
[1731803601364,0.0017148,90747.0,90743.0,0.1102]
[1731803601601,0.0017148,90747.0,90741.0,0.110203]
[1731803602348,0.0017148,90747.0,90738.0,0.220413]
[1731803602581,0.0017148,90747.0,90729.0,0.220436]
[1731803602807,0.0017148,90747.0,90746.0,0.110197]
[1731803603545,0.0017148,90747.0,90746.0,0.11240088]
[1731803603783,0.0017148,90747.0,90746.0,0.110197]
[1731803607177,0.0017148,90747.0,90746.0,0.11240064]
[1731803607865,0.0017148,90747.0,90746.0,0.22646319]
[1731803608317,0.09150004,90767.0,90766.0,0.110173]
[1731803608767,0.0008571,90773.0,90762.0,0.220354]
[1731803609003,0.0008571,90773.0,90772.0,0.110166]
[1731803609678,0.0008571,90773.0,90771.0,0.110166]
[1731803609925,0.0008571,90773.0,90756.0,0.01]
[1731803610138,0.0008571,90773.0,90770.0,0.110168]
[1731803610375,0.0008571,90773.0,90757.0,0.220368]
[1731803610608,0.0008571,90773.0,90761.0,0.220358]
[1731803610822,0.0008571,90773.0,90759.0,0.110181]
[1731803610823,0.0008571,90773.0,90759.0,0.220363]
[1731803611043,0.0008571,90773.0,90771.0,0.110166]
[1731803611271,0.0008571,90773.0,90760.0,0.220361]
[1731803611489,0.0008571,90773.0,90771.0,0.110166]
[1731803611935,0.0008571,90773.0,90772.0,0.110166]
[1731803616858,0.0008571,90773.0,90772.0,0.11236907]
[1731803617758,0.0008571,90773.0,90772.0,0.110166]
[1731803619187,0.0008571,90773.0,90768.0,0.110169]
[1731803619444,0.0008571,90773.0,90756.0,0.11406255]
[1731803619445,0.0008571,90773.0,90772.0,0.110166]
[1731803620382,0.0008571,90773.0,90772.0,0.11236919]
[1731803620625,0.0008571,90773.0,90772.0,0.110166]
[1731803623145,0.09149934,90786.0,90771.0,0.09020294]
[1731803623400,0.09149934,90786.0,90785.0,0.11015]
[1731803623649,0.220239,90811.0,90796.0,0.110137]
[1731803623650,0.0788,90804.0,90796.0,0.110137]
[1731803623875,0.1277,90804.0,90796.0,0.110137]
[1731803624091,0.1277,90804.0,90799.0,0.110132]
[1731803624319,0.10906255,90803.0,90799.0,0.110132]
[1731803624552,0.10906255,90803.0,90792.0,0.220283]
[1731803624776,0.10906255,90803.0,90797.0,0.110135]
[1731803625010,0.10906255,90803.0,90799.0,0.110133]
[1731803625464,0.10906255,90803.0,90795.0,0.220276]
[1731803625690,0.10906255,90803.0,90792.0,0.110141]
[1731803625691,0.220261,90801.0,90792.0,0.110141]
[1731803625937,0.110135,90798.0,90790.0,0.110143]
[1731803626162,0.32931955,90803.0,90790.0,0.220288]
[1731803626385,0.110132,90801.0,90794.0,0.110139]
[1731803626809,0.10906255,90803.0,90774.0,0.38611224]
[1731803627042,0.10906255,90803.0,90799.0,0.110132]
[1731803627257,0.10906255,90803.0,90799.0,0.110133]
[1731803627683,0.10906255,90803.0,90788.0,0.220293]
[1731803627923,0.1277,90804.0,90775.0,0.10906255]
[1731803627924,0.0489,90804.0,90803.0,0.110128]
[1731803628156,0.22022,90819.0,90789.0,0.00220272]
[1731803628157,0.0805,90813.0,90790.0,0.220288]
[1731803628371,0.0805,90813.0,90812.0,0.110117]
[1731803628908,0.0805,90813.0,90809.0,0.110121]
[1731803629145,0.0805,90813.0,90802.0,0.220257]
[1731803629408,0.0805,90813.0,90808.0,0.110121]
[1731803629640,0.0805,90813.0,90809.0,0.11012]
[1731803630407,0.08054198,90813.0,90796.0,0.16578524]
[1731803630609,0.08054198,90813.0,90786.0,0.16578524]
[1731803630610,0.0805,90799.0,90786.0,0.16578524]
[1731803630848,0.190633,90799.0,90797.0,0.16578524]
[1731803631085,0.190633,90799.0,90789.0,0.220291]
[1731803631086,0.0805,90799.0,90789.0,0.220291]
[1731803631294,0.0452,90798.0,90786.0,0.38608224]
[1731803631563,0.0452,90798.0,90788.0,0.220293]
[1731803631779,0.0452,90798.0,90786.0,0.16578524]
[1731803631780,0.0452,90798.0,90796.0,0.110136]
[1731803632861,0.0452,90798.0,90789.0,0.220291]
[1731803632862,0.110137,90796.0,90789.0,0.110145]
[1731803633087,0.110137,90796.0,90778.0,0.220316]
[1731803633088,0.0452,90798.0,90785.0,0.16578524]
[1731803633304,0.110137,90796.0,90789.0,0.110145]
[1731803633797,0.110138,90795.0,90789.0,0.110145]
[1731803634009,0.0452,90798.0,90787.0,0.220295]
[1731803634010,0.110138,90796.0,90787.0,0.220295]
[1731803634247,0.21098524,90798.0,90776.0,0.220322]
[1731803634475,0.21098524,90798.0,90773.0,0.220328]
[1731803634476,0.220274,90796.0,90773.0,0.220328]
[1731803634695,0.220276,90795.0,90782.0,0.220306]
[1731803634907,0.110146,90789.0,90782.0,0.110153]
[1731803635151,0.220281,90793.0,90772.0,0.005]
[1731803635377,0.110144,90790.0,90784.0,0.110151]
[1731803635601,0.110147,90787.0,90786.0,0.0017128]
[1731803635814,0.235847,90787.0,90786.0,0.0017128]
[1731803636036,0.34490955,90787.0,90786.0,0.0017128]
[1731803636724,0.110164,90774.0,90772.0,0.16578524]
[1731803637179,0.110164,90774.0,90768.0,0.11017]
[1731803637907,0.110164,90774.0,90764.0,0.220349]
[1731803637908,0.16578524,90785.0,90769.0,0.110169]
[1731803638131,0.03306255,90784.0,90758.0,0.16578524]
[1731803638364,0.110161,90776.0,90769.0,0.110169]
[1731803638616,0.220317,90778.0,90766.0,0.110172]
[1731803638853,0.03306255,90784.0,90758.0,0.16578524]
[1731803638854,0.0452,90770.0,90758.0,0.16578524]
[1731803639123,0.11017,90768.0,90758.0,0.27596724]
[1731803639375,0.11017,90768.0,90750.0,0.220384]
[1731803639376,0.110179,90761.0,90751.0,0.16578524]
[1731803639585,0.110178,90763.0,90751.0,0.16578524]
[1731803639839,0.110175,90765.0,90758.0,0.110182]
[1731803640059,0.0805,90769.0,90754.0,0.220374]
[1731803640060,0.110176,90764.0,90754.0,0.220374]
[1731803640293,0.110175,90765.0,90759.0,0.110181]
[1731803640529,0.110176,90764.0,90759.0,0.110181]
[1731803640761,0.110174,90766.0,90760.0,0.1118944]
[1731803641512,0.220341,90768.0,90760.0,0.1118944]
[1731803641513,0.110179,90761.0,90760.0,0.0017144]
[1731803641742,0.220346,90766.0,90760.0,0.0017144]
[1731803641969,0.01645131,90765.0,90760.0,0.1118934]
[1731803642204,0.01645131,90764.0,90760.0,0.1118934]
[1731803642436,0.110179,90761.0,90760.0,0.0017144]
[1731803642882,0.01645131,90763.0,90760.0,0.0017144]
[1731803643109,0.01645131,90761.0,90760.0,0.0017144]
[1731803643338,0.110176,90764.0,90760.0,0.0017144]
[1731803643569,0.0805,90769.0,90760.0,0.2220754]
[1731803643781,0.110173,90767.0,90761.0,0.110179]
[1731803644257,0.300839,90769.0,90760.0,0.0017144]
[1731803644504,0.110172,90767.0,90761.0,0.110178]
[1731803645191,0.02181065,90775.0,90761.0,0.110178]
[1731803645192,4.198e-05,90777.0,90762.0,0.16578524]
[1731803645441,4.198e-05,90777.0,90760.0,0.0017144]
[1731803645664,0.16578524,90775.0,90761.0,0.22256135]
[1731803645882,0.16578524,90775.0,90774.0,0.110163]
[1731803646328,4.198e-05,90777.0,90774.0,0.110162]
[1731803646560,4.198e-05,90777.0,90771.0,0.220333]
[1731803646777,4.198e-05,90777.0,90776.0,0.110161]
[1731803648654,4.198e-05,90777.0,90776.0,0.19386388]
[1731803649140,4.198e-05,90777.0,90776.0,0.30292643]
[1731803649373,4.198e-05,90777.0,90776.0,0.30072355]
[1731803649827,4.198e-05,90777.0,90776.0,0.30572355]
[1731803653206,0.19721233,90817.0,90776.0,0.30572355]
[1731803653207,0.16578524,90788.0,90787.0,0.005]
[1731803653441,0.09154022,90798.0,90797.0,0.110135]
[1731803654082,0.110111,90817.0,90808.0,0.110122]
[1731803654345,0.220223,90817.0,90804.0,0.220252]
[1731803654593,0.220233,90813.0,90798.0,0.220266]
[1731803654792,0.0772,90818.0,90792.0,0.220283]
[1731803654793,0.220224,90817.0,90792.0,0.220283]
[1731803655027,0.220224,90817.0,90806.0,0.110124]
[1731803655231,0.11012,90810.0,90804.0,0.110127]
[1731803655449,0.220232,90813.0,90804.0,0.110126]
[1731803655672,0.110119,90811.0,90804.0,0.110126]
[1731803656107,0.11012,90810.0,90804.0,0.110126]
[1731803656333,0.11012,90810.0,90805.0,0.110125]
[1731803656788,0.220224,90817.0,90792.0,0.220283]
[1731803656993,0.110128,90803.0,90797.0,0.16578524]
[1731803657207,0.110128,90803.0,90797.0,0.27592024]
[1731803657432,0.110128,90803.0,90797.0,0.110135]
[1731803657639,0.110128,90803.0,90792.0,0.220283]
[1731803657878,0.220243,90809.0,90786.0,0.16578524]
[1731803657879,0.0772,90798.0,90786.0,0.16578524]
[1731803658117,0.110136,90797.0,90792.0,0.110141]
[1731803658545,0.110138,90796.0,90787.0,0.330442]
[1731803658807,0.297469,90798.0,90789.0,0.110144]
[1731803658808,0.330406,90797.0,90789.0,0.110144]
[1731803659037,0.0772,90798.0,90777.0,0.32938155]
[1731803659038,0.0772,90798.0,90777.0,0.10906255]
[1731803659255,0.0772,90798.0,90794.0,0.110138]
[1731803659503,0.0772,90798.0,90782.0,0.220307]
[1731803659504,0.110138,90795.0,90778.0,0.10906255]
[1731803659754,0.0772,90798.0,90772.0,0.005]
[1731803659755,0.110144,90791.0,90785.0,0.110149]
[1731803660210,0.110144,90790.0,90785.0,0.110149]
[1731803660431,0.220278,90794.0,90786.0,0.110148]
[1731803660729,0.220278,90794.0,90777.0,0.22032]
[1731803660730,0.110143,90791.0,90784.0,0.11015]
[1731803660929,0.16578524,90795.0,90782.0,0.220306]
[1731803661166,0.110141,90793.0,90786.0,0.110148]
[1731803661413,0.0452,90794.0,90776.0,0.220322]
[1731803661414,0.0452,90794.0,90780.0,0.110155]
[1731803661634,0.0452,90794.0,90779.0,0.220315]
[1731803661635,0.110146,90788.0,90779.0,0.220315]
[1731803661863,0.110146,90788.0,90783.0,0.110152]